bitfinex/quotes_SOLUSD_20260222
["timestamp","ask_amount","ask_price","bid_price","bid_amount"]
[1771787475655,0.5,83.171,83.133,70.92891751]
[1771787475944,0.5,83.169,83.133,58.9]
[1771787476143,0.5,83.159,83.13,0.2]
[1771787477351,0.5,83.157,83.13,0.2]
[1771787478554,0.5,83.155,83.13,0.2]
[1771787481064,0.5,83.153,83.13,0.2]
[1771787481442,0.5,83.149,83.121,58.9]
[1771787483159,0.5,83.147,83.121,58.9]
[1771787484760,42.09361619,83.148,83.121,58.9]
[1771787484761,0.5,83.139,83.121,58.9]
[1771787484946,0.5,83.139,83.101,12.03354953]
[1771787485343,0.5,83.139,83.09,58.9]
[1771787485344,0.5,83.137,83.1,3.10898756]
[1771787485544,0.5,83.137,83.11,3.10898756]
[1771787486364,0.5,83.137,83.092,0.28432314]
[1771787486551,0.5,83.137,83.11,3.10898756]
[1771787486740,0.5,83.137,83.11,2.60898756]
[1771787487771,12.02660284,83.149,83.12,3.10898756]
[1771787489653,12.02660284,83.149,83.102,30.08322294]
[1771787489854,12.02660284,83.149,83.12,3.10898756]
[1771787491577,0.5,83.15,83.12,3.10898756]
[1771787492569,12.52660284,83.149,83.12,3.10898756]
[1771787492776,0.5,83.148,83.12,3.10898756]
[1771787494365,12.02689213,83.147,83.105,0.28432314]
[1771787494567,12.02689213,83.147,83.12,3.10898756]
[1771787496869,12.52689213,83.147,83.12,3.10898756]
[1771787498571,0.5,83.146,83.12,3.10898756]
[1771787500976,12.02718143,83.145,83.12,3.10898756]
[1771787501579,12.52718143,83.145,83.12,3.10898756]
[1771787502786,0.5,83.144,83.12,3.10898756]
[1771787503897,12.5273897,83.144,83.12,3.10898756]
[1771787507296,0.5,83.143,83.12,3.11570969]
[1771787507674,12.02515662,83.159,83.13,3.11570969]
[1771787507870,0.5,83.158,83.116,12.03128682]
[1771787508188,0.5,83.149,83.11,3.11570969]
[1771787512597,0.5,83.147,83.111,12.03210164]
[1771787514790,0.5,83.145,83.095,0.28432314]
[1771787514995,0.5,83.145,83.11,3.11570969]
[1771787516499,0.5,83.143,83.111,12.03210164]
[1771787518393,12.0276154,83.142,83.111,70.93210164]
[1771787518700,0.5,83.141,83.111,70.93210164]
[1771787520406,0.5,83.139,83.1,3.11570969]
[1771787520613,0.5,83.137,83.1,3.11570969]
[1771787521618,0.5,83.137,83.11,3.11570969]
[1771787524384,0.5,83.135,83.11,3.11570969]
[1771787526923,0.5,83.133,83.11,3.11570969]
[1771787530115,0.5,83.142,83.12,3.11570969]
[1771787531719,0.5,83.142,83.113,12.03181211]
[1771787531907,0.5,83.142,83.12,3.11570969]
[1771787534324,0.5,83.149,83.13,3.11570969]
[1771787536116,30.06269867,83.16,83.13,3.11570969]
[1771787536117,0.5,83.147,83.13,3.11570969]
[1771787537226,0.5,83.145,83.13,3.11570969]
[1771787538509,0.5,83.151,83.13,3.11570969]
[1771787542724,0.5,83.151,83.088,103.3]
[1771787542725,0.5,83.178,83.14,3.11570969]
[1771787542911,0.5,83.178,83.16,3.11570969]
[1771787547627,0.5,83.198,83.17,3.11570969]
[1771787549334,0.5,83.187,83.15,3.11570969]
[1771787549509,0.5,83.187,83.151,12.02631357]
[1771787550119,0.5,83.187,83.16,3.11570969]
[1771787553542,0.5,83.185,83.16,3.11570969]
[1771787557444,0.5,83.183,83.16,3.11570969]
[1771787561749,0.5,83.183,83.17,3.11570969]
[1771787563445,0.5,83.183,83.16,3.11570969]
[1771787567252,0.5,83.183,83.16,3.11264252]
[1771787582062,0.5,83.183,83.17,3.11264252]
[1771787583248,0.5,83.183,83.162,58.9]
[1771787587777,0.5,83.183,83.163,12.02457823]
[1771787596015,0.5,83.183,83.17,3.11264252]
[1771787596179,0.5,83.187,83.17,3.11264252]
[1771787596692,0.5,83.209,83.17,3.11264252]
[1771787596884,0.5,83.208,83.18,3.11264252]
[1771787598875,0.5,83.206,83.18,3.11264252]
[1771787600372,12.0185085,83.205,83.18,3.11264252]
[1771787600591,0.5,83.204,83.18,3.11264252]
[1771787602085,0.5,83.202,83.18,3.11264252]
[1771787604190,0.5,83.2,83.18,3.11264252]
[1771787608296,0.5,83.2,83.181,12.02197617]
[1771787608599,0.5,83.2,83.19,3.11264252]
[1771787615505,0.5,83.2,83.18,3.11264252]
[1771787618088,0.5,83.2,83.181,70.92197617]
[1771787619396,0.5,83.2,83.181,58.9]
[1771787619595,0.5,83.198,83.181,53.73679731]
[1771787619790,0.5,83.198,83.181,53.23679731]
[1771787620110,0.491816,83.196,83.181,53.23679731]
[1771787622314,0.491816,83.194,83.181,53.23679731]
[1771787623418,42.34202629,83.219,83.181,53.23679731]
[1771787623618,42.34202629,83.219,83.174,0.49965192]
[1771787624111,3.11264252,83.21,83.17,3.11264252]
[1771787625406,0.491816,83.207,83.171,0.49965192]
[1771787629122,0.491816,83.205,83.171,0.49965192]
[1771787632624,12.01865294,83.204,83.171,0.49965192]
[1771787632826,0.491816,83.203,83.171,0.49965192]
[1771787636123,0.491816,83.201,83.171,0.49965192]
[1771787639219,0.491816,83.199,83.171,0.49965192]
[1771787641431,30.04735463,83.202,83.171,0.49965192]
[1771787641432,0.491816,83.197,83.171,0.49965192]
[1771787643318,0.491816,83.195,83.171,0.49965192]
[1771787645536,0.491816,83.193,83.171,0.49965192]
[1771787663057,12.02038657,83.192,83.171,0.49965192]
[1771787663354,12.02038657,83.192,83.181,0.4567359]
[1771787671257,60.06957547,83.237,83.181,0.4567359]
[1771787671558,30.03853518,83.227,83.201,0.4567359]
[1771787673256,0.45836728,83.224,83.201,0.4567359]
[1771787675563,0.45836728,83.222,83.201,0.4567359]
[1771787676661,0.45836728,83.22,83.201,0.4567359]
[1771787678966,0.47837102,83.218,83.201,0.4567359]
[1771787679863,12.01677541,83.217,83.201,0.4567359]
[1771787680070,0.47837102,83.216,83.201,0.4567359]
[1771787681957,12.49543525,83.215,83.201,0.4567359]
[1771787692557,0.47837102,83.214,83.19,3.11041535]
[1771787692756,30.03853518,83.227,83.161,12.02486742]
[1771787692757,0.47837102,83.209,83.161,12.02486742]
[1771787693766,0.47837102,83.207,83.161,12.02486742]
[1771787693965,0.47837102,83.207,83.17,3.11041535]
[1771787694770,0.47837102,83.207,83.171,0.48467764]
[1771787695576,0.47837102,83.205,83.171,0.48467764]
[1771787697257,0.47837102,83.203,83.171,0.48467764]
[1771787699161,0.47837102,83.201,83.171,0.48467764]
[1771787700178,12.01801179,83.209,83.173,0.48467764]
[1771787700385,12.01359939,83.239,83.201,0.48467764]
[1771787700562,30.03544182,83.235,83.201,0.48467764]
[1771787700764,3.69383402,83.232,83.201,0.48467764]
[1771787701165,42.0516394,83.231,83.201,0.48467764]
[1771787701388,3.11041535,83.23,83.19,3.11041535]
[1771787701968,3.11041535,83.23,83.187,0.48467764]
[1771787702169,3.11041535,83.22,83.187,0.48467764]
[1771787702370,0.47837102,83.217,83.187,0.48467764]
[1771787704588,12.01691982,83.216,83.191,0.48467764]
[1771787705885,3.11041535,83.23,83.191,0.48467764]
[1771787705886,0.47837102,83.22,83.191,0.48467764]
[1771787708394,12.01648661,83.219,83.191,0.48467764]
[1771787709390,0.49473288,83.219,83.191,0.48467764]
[1771787710388,12.01663101,83.218,83.191,0.48467764]
[1771787712498,0.49473288,83.218,83.191,0.48467764]
[1771787717585,12.01677541,83.217,83.191,0.48467764]
[1771787719681,0.45327624,83.217,83.191,0.48467764]
[1771787719897,0.45327624,83.228,83.191,0.48467764]
[1771787720689,0.45327624,83.226,83.191,0.48467764]
[1771787723498,0.45327624,83.224,83.191,0.48467764]
[1771787729404,0.45327624,83.222,83.191,0.48467764]
[1771787735096,12.01619783,83.221,83.191,0.48467764]
[1771787735301,0.45327624,83.22,83.191,0.48467764]
[1771787735503,0.45327624,83.22,83.2,3.11041535]
[1771787738115,12.01619783,83.221,83.198,0.48546938]
[1771787738116,0.45327624,83.218,83.198,0.48546938]
[1771787739812,0.45327624,83.218,83.19,3.11041535]
[1771787741117,0.48159254,83.216,83.19,3.11041535]
[1771787745320,0.48159254,83.214,83.19,3.58668795]
[1771787746918,0.48159254,83.214,83.181,0.4762726]
[1771787747112,0.48159254,83.214,83.18,3.11041535]
[1771787748204,0.48159254,83.212,83.18,3.11041535]
[1771787748920,0.48159254,83.212,83.18,3.58668795]
[1771787749301,0.48159254,83.21,83.18,3.58805998]
[1771787750504,0.48159254,83.208,83.181,0.4762726]
[1771787751606,0.48159254,83.208,83.19,3.11178738]
[1771787752815,0.48159254,83.206,83.19,3.11178738]
[1771787755320,0.48159254,83.21,83.191,0.4762726]
[1771787758024,0.48159254,83.22,83.2,3.11178738]
[1771787758217,0.48159254,83.22,83.201,0.4762726]
[1771787759828,12.49807915,83.219,83.201,0.4762726]
[1771787760833,12.01648661,83.219,83.201,0.4762726]
[1771787761929,12.49746236,83.224,83.211,0.4762726]
[1771787766126,0.48159254,83.231,83.211,0.4762726]
[1771787767322,12.01489847,83.23,83.211,0.4762726]
[1771787768833,12.01489847,83.23,83.178,48.73679731]
[1771787768834,0.49999513,83.226,83.19,3.11178738]
[1771787769627,0.49999513,83.226,83.17,30.0586445]
[1771787769628,0.49999513,83.224,83.21,3.11178738]
[1771787769939,12.0156203,83.225,83.21,3.11178738]
[1771787770141,0.49999513,83.228,83.21,3.11178738]
[1771787770642,0.49999513,83.228,83.211,0.47833762]
[1771787773839,0.49999513,83.228,83.22,3.11178738]
[1771787784944,12.21358041,83.24,83.221,0.47071942]
[1771787785144,12.21358041,83.24,83.23,3.11178738]
[1771787786146,0.45810326,83.249,83.231,0.47071942]
[1771787786343,0.45810326,83.249,83.206,30.04558579]
[1771787786344,0.45810326,83.249,83.24,3.11178738]
[1771787786727,0.45810326,83.253,83.24,3.11178738]
[1771787788249,0.65810326,83.25,83.24,3.11178738]
[1771787788432,0.45810326,83.249,83.24,3.11178738]
[1771787788627,12.47025956,83.249,83.24,3.11178738]
[1771787791344,0.45810326,83.259,83.242,0.47071942]
[1771787791649,0.45810326,83.264,83.242,0.47071942]
[1771787795050,0.45810326,83.262,83.242,0.47071942]
[1771787796645,0.45810326,83.262,83.25,3.11178738]
[1771787799050,12.01042504,83.261,83.25,3.11178738]
[1771787799258,12.46606636,83.261,83.25,3.11178738]
[1771787803153,12.00927115,83.269,83.251,0.45952878]
[1771787803460,12.00927115,83.269,83.26,3.11178738]
[1771787803661,12.00927115,83.269,83.257,0.45952878]
[1771787805540,12.46491247,83.269,83.257,0.45952878]
[1771787806248,12.00927115,83.269,83.257,0.45952878]
[1771787807567,0.2,83.27,83.24,12.01334888]
[1771787807568,0.2,83.27,83.261,0.45952878]
[1771787807762,0.45564132,83.281,83.261,0.45952878]
[1771787807971,12.00518027,83.298,83.272,0.45952878]
[1771787808265,12.46067065,83.299,83.281,0.45952878]
[1771787808567,0.2,83.3,83.281,0.45952878]
[1771787809547,0.45564132,83.296,83.248,0.45952878]
[1771787809748,0.45564132,83.296,83.251,0.45952878]
[1771787810973,0.45564132,83.294,83.251,0.45952878]
[1771787812165,0.45564132,83.289,83.25,3.10375076]
[1771787813165,0.45564132,83.287,83.25,3.10375076]
[1771787813361,0.45564132,83.287,83.25,3.56327954]
[1771787813568,0.45564132,83.287,83.25,3.10375076]
[1771787813755,0.45564132,83.287,83.25,3.56327954]
[1771787813955,0.45564132,83.287,83.251,0.45952878]
[1771787814670,0.45564132,83.285,83.251,0.45952878]
[1771787815276,0.45564132,83.285,83.261,0.45952878]
[1771787817261,42.02386955,83.286,83.261,0.45952878]
[1771787817262,0.45564132,83.283,83.261,0.45952878]
[1771787817972,12.46274952,83.284,83.261,0.45952878]
[1771787818163,0.45564132,83.283,83.261,0.45952878]
[1771787818472,0.45564132,83.283,83.26,3.10375076]
[1771787818874,0.45564132,83.283,83.25,3.10375076]
[1771787819757,0.45564132,83.281,83.25,3.10375076]
[1771787821376,0.45564132,83.279,83.25,3.10375076]
[1771787822276,0.45564132,83.279,83.25,3.56327954]
[1771787823081,0.45564132,83.279,83.25,3.10375076]
[1771787823462,0.45564132,83.277,83.25,3.10375076]
[1771787825673,0.45564132,83.275,83.25,3.10375076]
[1771787825975,0.45564132,83.275,83.243,0.45952878]
[1771787828485,0.45981514,83.273,83.243,0.45952878]
[1771787829989,0.45981514,83.271,83.25,3.59542679]
[1771787832364,0.45981514,83.269,83.25,3.59542679]
[1771787832668,0.45981514,83.269,83.25,3.10375076]
[1771787834763,0.45981514,83.267,83.25,3.10375076]
[1771787835169,0.45981514,83.267,83.25,3.58309404]
[1771787838684,0.45981514,83.267,83.25,3.10375076]
[1771787839594,12.00970384,83.266,83.25,3.10375076]
[1771787839888,0.48319436,83.265,83.25,3.10375076]
[1771787842689,0.48319436,83.263,83.229,12.0149833]
[1771787842874,0.48319436,83.263,83.24,3.10375076]
[1771787844695,12.49347516,83.262,83.241,0.14045447]
[1771787845398,0.48319436,83.261,83.241,0.14045447]
[1771787846588,12.0105693,83.26,83.241,0.14045447]
[1771787849805,0.48319436,83.26,83.241,0.14045447]
[1771787851596,12.01071355,83.259,83.241,0.14045447]
[1771787856508,0.48319436,83.281,83.241,0.14045447]
[1771787856683,0.48319436,83.275,83.241,0.14045447]
[1771787861092,0.45014814,83.273,83.241,0.14045447]
[1771787866904,0.45014814,83.271,83.241,0.14045447]
[1771787867092,0.45014814,83.271,83.24,3.10375076]
[1771787869193,0.45014814,83.271,83.24,3.10724719]
[1771787869394,0.45014814,83.269,83.24,3.10724719]
[1771787871615,0.45014814,83.267,83.24,3.10724719]
[1771787872913,0.45014814,83.265,83.24,3.10724719]
[1771787878817,0.45014814,83.263,83.24,3.10724719]
[1771787880119,0.45014814,83.261,83.24,3.24770166]
[1771787881422,0.45014814,83.259,83.24,3.24770166]
[1771787881921,0.45014814,83.259,83.24,3.10724719]
[1771787882125,0.45014814,83.259,83.24,3.24770166]
[1771787883124,0.45014814,83.259,83.241,0.14045447]
[1771787884528,12.01085781,83.258,83.241,0.14045447]
[1771787889737,0.48472477,83.258,83.241,0.14045447]
[1771787893339,12.01100207,83.257,83.241,0.14045447]
[1771787896260,12.49126013,83.262,83.241,0.14045447]
[1771787896441,30.01929395,83.28,83.251,0.46684151]
[1771787896639,30.01929395,83.28,83.261,0.46684151]
[1771787898346,30.01929395,83.28,83.26,3.10724719]
[1771787898539,0.48097933,83.279,83.26,3.10724719]
[1771787898736,0.48097933,83.279,83.257,0.46684151]
[1771787900849,0.48097933,83.277,83.26,3.5740887]
[1771787903463,0.48097933,83.275,83.26,3.5740887]
[1771787907939,12.00855008,83.274,83.26,3.5740887]
[1771787908138,0.48097933,83.273,83.26,3.5740887]
[1771787909852,12.0088385,83.272,83.26,0.46684151]
[1771787910458,12.0088385,83.272,83.251,0.46684151]
[1771787910459,0.48097933,83.271,83.251,0.46684151]
[1771787913547,12.00912693,83.27,83.251,0.46684151]
[1771787923570,12.49034021,83.285,83.261,0.45304902]
[1771787923754,12.49034021,83.285,83.271,0.45304902]
[1771787924276,0.48337618,83.284,83.271,0.45304902]
[1771787928275,12.00725238,83.283,83.271,0.45304902]
[1771787930982,0.48337618,83.283,83.271,0.45304902]
[1771787933579,12.00739655,83.282,83.271,0.45304902]
[1771787934797,12.00739655,83.282,83.27,3.10514544]
[1771787934798,0.48337618,83.282,83.27,3.10514544]
[1771787938695,12.00754073,83.281,83.27,3.55819446]
[1771787939707,0.48337618,83.28,83.27,3.10514544]
[1771787941996,12.0078291,83.279,83.27,3.10514544]
[1771787942299,12.0078291,83.279,83.27,3.55819446]
[1771787943603,12.0071082,83.284,83.271,0.45304902]
[1771787944387,12.49048438,83.284,83.271,0.45304902]
[1771787946602,0.48337618,83.283,83.271,0.45304902]
[1771787946793,0.48337618,83.283,83.27,3.10514544]
[1771787951903,12.00739655,83.282,83.27,3.10514544]
[1771787956209,0.47757045,83.282,83.27,3.10514544]
[1771787963616,12.00754073,83.281,83.27,3.10514544]
[1771787966624,0.47757045,83.286,83.271,0.46287363]
[1771787969515,12.00696403,83.285,83.271,0.46287363]
[1771787970016,12.48453448,83.285,83.271,0.46287363]
[1771787970720,0.47757045,83.284,83.27,3.10514544]
[1771787970920,0.47757045,83.284,83.27,3.56801907]
[1771787971220,0.47757045,83.284,83.271,0.46287363]
[1771787971919,42.01781554,83.298,83.271,0.46287363]
[1771787972421,42.01781554,83.298,83.28,3.10514544]
[1771787974016,0.47757045,83.295,83.277,0.46287363]
[1771787975704,0.47757045,83.295,83.27,3.10514544]
[1771787975916,0.47757045,83.295,83.271,0.46287363]
[1771787976426,0.47757045,83.293,83.271,0.46287363]
[1771787979022,12.00595495,83.292,83.271,0.46287363]
[1771787979328,0.48494636,83.291,83.263,0.47513328]
[1771787981128,12.00624324,83.29,83.263,0.47513328]
[1771787981337,0.48494636,83.289,83.263,0.47513328]
[1771787982325,0.48494636,83.289,83.27,3.10514544]
[1771787983427,12.00653155,83.288,83.27,3.10514544]
[1771787983606,0.48494636,83.287,83.27,3.10514544]
[1771787985131,0.48494636,83.287,83.27,3.58027872]
[1771787990331,0.48494636,83.287,83.271,0.47513328]
[1771787999930,30.01272539,83.298,83.271,0.47513328]
[1771787999931,0.48494636,83.291,83.271,0.47513328]
[1771788000432,0.2,83.3,83.281,0.47513328]
[1771788000640,0.2,83.3,83.291,0.47513328]
[1771788006535,12.00494603,83.299,83.291,0.47513328]
[1771788015828,12.00494603,83.299,83.28,3.1050897]
[1771788017946,0.2,83.3,83.281,0.47967128]
[1771788018149,0.2,83.3,83.291,0.47967128]
[1771788026651,12.00350502,83.309,83.292,0.47967128]
[1771788026849,12.00350502,83.309,83.29,3.1050897]
[1771788026850,12.00350502,83.309,83.301,0.47967128]
[1771788027252,12.00350502,83.309,83.3,3.1050897]
[1771788029559,12.45550433,83.309,83.3,3.1050897]
[1771788030161,12.45550433,83.309,83.296,0.47967128]
[1771788031850,0.45199931,83.308,83.291,0.47967128]
[1771788039176,0.5,83.318,83.29,3.1050897]
[1771788040972,0.5,83.318,83.28,3.1050897]
[1771788044668,0.5,83.316,83.281,12.00754073]
[1771788045776,12.00264058,83.315,83.281,12.00754073]
[1771788046073,0.5,83.314,83.281,12.00754073]
[1771788053375,0.5,83.314,83.29,3.1050897]
[1771788055280,0.5,83.314,83.29,3.10316501]
[1771788059082,0.5,83.314,83.291,12.00609909]
[1771788059293,0.2,83.34,83.291,12.00609909]
[1771788059294,0.5,83.331,83.3,3.10316501]
[1771788059469,0.5,83.331,83.31,3.10316501]
[1771788059796,0.2,83.34,83.32,3.10316501]
[1771788059969,0.2,83.34,83.33,3.10316501]
[1771788060288,0.5,83.359,83.33,3.10316501]
[1771788060464,0.5,83.359,83.32,3.10316501]
[1771788060465,0.5,83.358,83.34,3.10316501]
[1771788060883,0.5,83.356,83.34,3.10316501]
[1771788061085,0.5,83.356,83.33,3.10316501]
[1771788061685,0.5,83.354,83.33,3.10316501]
[1771788063468,0.5,83.352,83.33,3.10316501]
[1771788063771,0.5,83.352,83.32,3.10316501]
[1771788066176,29.99226675,83.355,83.32,3.10316501]
[1771788066177,11.99745653,83.351,83.32,3.10316501]
[1771788066380,0.5,83.35,83.32,3.10316501]
[1771788070182,0.5,83.348,83.285,0.28432314]
[1771788070375,0.5,83.348,83.32,3.10316501]
[1771788074987,0.5,83.346,83.32,3.10316501]
[1771788075294,0.5,83.346,83.321,12.00177626]
[1771788078093,0.5,83.344,83.32,3.10316501]
[1771788080899,0.5,83.344,83.321,12.00177626]
[1771788081579,0.5,83.344,83.32,3.10316501]
[1771788087687,0.5,83.342,83.32,3.10316501]
[1771788088290,0.5,83.342,83.316,12.00236863]
[1771788089807,0.5,83.342,83.311,12.00321686]
[1771788092904,29.99158896,83.357,83.311,12.00321686]
[1771788092905,11.9988961,83.341,83.311,12.00321686]
[1771788093119,0.5,83.34,83.311,12.00321686]
[1771788095112,0.5,83.338,83.311,12.00321686]
[1771788095493,0.5,83.355,83.33,3.10316501]
[1771788096794,0.5,83.355,83.32,3.10316501]
[1771788097505,11.99702473,83.354,83.32,3.10316501]
[1771788097696,0.5,83.353,83.32,3.10316501]
[1771788099104,0.5,83.351,83.31,3.10316501]
[1771788101309,0.5,83.349,83.311,12.00321686]
[1771788104422,0.5,83.347,83.311,12.00321686]
[1771788105106,11.99788837,83.348,83.292,48.73679731]
[1771788105107,0.5,83.345,83.295,30.01361161]
[1771788105412,0.5,83.345,83.31,3.10316501]
[1771788106434,0.5,83.345,83.32,3.10316501]
[1771788112016,0.5,83.343,83.32,3.10316501]
[1771788112216,0.5,83.343,83.312,12.00293082]
[1771788113118,0.5,83.343,83.31,3.10316501]
[1771788113308,0.5,83.341,83.3,3.10316501]
[1771788115521,0.5,83.341,83.294,12.00566667]
[1771788115522,0.5,83.335,83.294,12.00566667]
[1771788118929,0.5,83.333,83.29,3.10297595]
[1771788120424,0.78432314,83.329,83.29,3.10297595]
[1771788120624,41.999664,83.334,83.27,15.11210288]
[1771788120625,0.5,83.316,83.27,15.11210288]
[1771788120825,0.5,83.304,83.27,3.10297595]
[1771788121018,0.5,83.304,83.28,3.10297595]
[1771788130016,0.5,83.302,83.28,3.10297595]
[1771788134136,0.5,83.302,83.27,3.10297595]
[1771788134340,0.5,83.3,83.27,3.10297595]
[1771788134720,0.5,83.3,83.26,3.10297595]
[1771788135033,0.5,83.296,83.25,3.10297595]
[1771788135541,0.5,83.296,83.26,3.10297595]
[1771788135935,0.5,83.296,83.247,42.04355712]
[1771788135936,0.5,83.289,83.25,3.10297595]
[1771788136529,12.00653155,83.288,83.26,3.10297595]
[1771788136734,0.5,83.287,83.26,3.10297595]
[1771788139439,0.5,83.285,83.26,3.10297595]
[1771788141340,0.5,83.285,83.24,3.10297595]
[1771788141341,12.00350502,83.309,83.27,3.10297595]
[1771788141534,0.5,83.305,83.28,3.10297595]
[1771788145240,0.5,83.303,83.27,3.10297595]
[1771788147747,0.5,83.301,83.27,3.10297595]
[1771788149044,0.5,83.301,83.28,3.10297595]
[1771788150555,0.5,83.299,83.28,3.10297595]
[1771788152555,0.5,83.299,83.271,12.00898271]
[1771788161258,0.5,83.297,83.271,12.00898271]
[1771788174565,0.5,83.297,83.28,3.10297595]
[1771788179287,0.5,83.297,83.28,3.10422406]
[1771788186491,0.5,83.302,83.28,3.10422406]
[1771788189188,12.0046578,83.301,83.28,3.10422406]
[1771788189396,12.5046578,83.301,83.28,3.10422406]
[1771788189597,0.5,83.3,83.28,3.10422406]
[1771788197798,12.00381299,83.307,83.29,3.10422406]
[1771788198005,12.50323288,83.311,83.29,3.10422406]
[1771788198405,0.5,83.31,83.29,3.10422406]
[1771788200094,0.5,83.308,83.28,3.10422406]
[1771788202712,0.5,83.308,83.281,12.00754073]
[1771788206412,0.5,83.308,83.29,3.10422406]
[1771788206599,0.42273554,83.308,83.29,3.10422406]
[1771788230963,0.42273554,83.308,83.286,0.07726446]
[1771788236251,42.28650725,83.329,83.286,0.07726446]
[1771788238161,0.45328041,83.326,83.286,0.07726446]
[1771788240468,0.45328041,83.324,83.286,0.07726446]
[1771788243367,0.45328041,83.322,83.286,0.07726446]
[1771788244776,0.45328041,83.32,83.29,3.58520112]
[1771788245761,0.45328041,83.32,83.291,0.48151619]
[1771788245967,0.45328041,83.318,83.291,0.48151619]
[1771788250478,0.47043062,83.316,83.291,0.48151619]
[1771788253282,0.47043062,83.314,83.291,0.48151619]
[1771788254177,12.00264058,83.315,83.291,0.48151619]
[1771788255675,0.47253954,83.315,83.291,0.48151619]
[1771788256872,0.47253954,83.313,83.291,0.48151619]
[1771788257075,0.47253954,83.313,83.283,0.47557181]
[1771788259568,0.47253954,83.311,83.283,0.47557181]
[1771788260069,0.47253954,83.311,83.284,12.0071082]
[1771788260378,0.47253954,83.311,83.285,0.47557181]
[1771788264662,0.47253954,83.309,83.285,0.47557181]
[1771788270570,0.47253954,83.309,83.287,0.47557181]
[1771788272072,0.47253954,83.313,83.287,0.47557181]
[1771788273499,12.47561232,83.312,83.287,0.47557181]
[1771788273698,12.47561232,83.312,83.291,0.47557181]
[1771788273875,0.47253954,83.311,83.291,0.47557181]
[1771788274077,12.00307278,83.312,83.291,0.47557181]
[1771788276703,0.47253954,83.313,83.291,0.47557181]
[1771788283076,12.00307278,83.312,83.291,0.47557181]
[1771788284588,0.49726366,83.312,83.291,0.47557181]
[1771788288903,12.50046087,83.312,83.291,0.47557181]
[1771788289283,0.49726366,83.311,83.291,0.47557181]
[1771788293699,0.49726366,83.311,83.292,12.00595495]
[1771788293889,0.49726366,83.319,83.293,0.49383015]
[1771788294096,0.49726366,83.319,83.301,0.49383015]
[1771788294406,0.49726366,83.328,83.31,3.10368493]
[1771788294594,0.49726366,83.328,83.308,0.49383015]
[1771788300214,0.49726366,83.326,83.302,0.49383015]
[1771788302924,12.00120012,83.325,83.3,3.10368493]
[1771788303100,12.00120012,83.325,83.29,12.00613109]
[1771788303101,0.49726366,83.324,83.291,0.49383015]
[1771788303299,0.49726366,83.324,83.29,15.10981602]
[1771788303300,0.49726366,83.324,83.281,0.49383015]
[1771788303501,0.49726366,83.319,83.281,0.49383015]
[1771788305119,0.49726366,83.317,83.283,0.49383015]
[1771788309416,0.49696581,83.315,83.283,0.49383015]
[1771788309918,0.49696581,83.315,83.29,3.10319937]
[1771788313126,12.00278464,83.314,83.29,3.10319937]
[1771788313431,0.49696581,83.313,83.29,3.10319937]
[1771788315126,12.00307278,83.312,83.29,3.10319937]
[1771788315329,0.46596418,83.311,83.29,3.10319937]
[1771788315720,0.46596418,83.311,83.267,30.02364948]
[1771788315721,0.46596418,83.309,83.24,63.16988065]
[1771788315921,0.46596418,83.299,83.26,3.10319937]
[1771788316930,0.46596418,83.297,83.261,12.01042504]
[1771788317828,0.46596418,83.295,83.261,0.48292822]
[1771788318133,0.46596418,83.295,83.252,0.48292822]
[1771788321031,0.46596418,83.293,83.26,3.10319937]
[1771788321227,0.46596418,83.293,83.254,0.48292822]
[1771788323133,0.46596418,83.289,83.256,0.48292822]
[1771788324709,0.46596418,83.287,83.256,0.48292822]
[1771788325410,0.46596418,83.287,83.261,0.48292822]
[1771788326833,12.00681987,83.286,83.261,0.48292822]
[1771788327031,0.46596418,83.285,83.261,0.48292822]
[1771788329734,0.46596418,83.283,83.261,0.48292822]
[1771788332720,0.46596418,83.281,83.261,0.48292822]
[1771788340327,0.46151782,83.279,83.254,0.4756478]
[1771788341143,0.46151782,83.279,83.24,3.10319937]
[1771788342340,0.47928801,83.277,83.241,12.01331074]
[1771788343145,0.47928801,83.277,83.25,3.10319937]
[1771788343653,0.47928801,83.277,83.251,0.04142398]
[1771788344437,12.00826168,83.276,83.251,0.04142398]
[1771788344638,0.47928801,83.275,83.251,0.04142398]
[1771788345951,0.47928801,83.273,83.251,0.04142398]
[1771788350550,0.47928801,83.271,83.251,0.04142398]
[1771788367265,0.47928801,83.271,83.251,0.00658416]
[1771788374483,12.50583485,83.27,83.251,0.00658416]
[1771788375083,0.49670792,83.269,83.251,0.00658416]
[1771788383893,0.49670792,83.267,83.25,3.10659593]
[1771788384271,0.49670792,83.267,83.242,12.01302479]
[1771788385189,0.49670792,83.267,83.25,3.10659593]
[1771788395401,0.49670792,83.267,83.24,3.10659593]